Cogmind - Beta 17 @@@ ROGUE MODE // 2026.07.12 @ 12:26:00 Player: ldi (hl). (hl) Result: Destroyed by YI-UF0 with YI-UF0's Doublenader Performance ------------- Evolutions (0) 0 Regions Visited (2) 400 Robots Destroyed (5) 25 Value Destroyed (40) 40 Prototype IDs (3) 60 Alien Tech Used (0) 0 Bonus (0) 0 TOTAL SCORE: 525 Bonus ------- None Cogmind --------- Core Integrity 0/250 Matter 290/300 Energy 46/100 System Corruption 0% Temperature Cool (47) Movement Core (450) Ox8 Location -10/Mines Parts ------- > --- POWER (1) -------- (None) > --- PROPULSION (2) --- (None) > --- UTILITY (2) ------ Large Storage Unit > --- WEAPON (2) ------- Particle Cannon Mini Grenade Launcher > --- INVENTORY (15) --- Ion Engine Mini Grenade Launcher Peak State ------------ > --- POWER ------------ Light Ion Engine > --- PROPULSION ------- Aluminum Leg Aluminum Leg > --- UTILITY ---------- Large Storage Unit > --- WEAPON ----------- Particle Cannon Particle Cannon > --- INVENTORY -------- Ion Engine Mini Grenade Launcher Mini Grenade Launcher [Rating: 8] Favorites ----------- Power Light Ion Engine Engine Light Ion Engine Propulsion Aluminum Leg Leg Aluminum Leg Utility Large Storage Unit Storage Large Storage Unit Weapon Particle Cannon Energy Gun Small Laser Energy Cannon Particle Cannon Launcher Mini Grenade Launcher Build | -11 -10 -10 ------- Run | Yrd Mat Min Slots Evolved . | . . . Power . | . . . Propulsion . | . . . Utility . | . . . Weapon . | . . . Parts Attached 10 | 5 3 2 Power 1 | 1 . . Engine 1 | 1 . . Core . | . . . Reactor . | . . . Propulsion 2 | 2 . . Treads . | . . . Leg 2 | 2 . . Wheel . | . . . Hover . | . . . Flight . | . . . Utility 1 | . . 1 Device . | . . . Storage 1 | . . 1 Processor . | . . . Hackware . | . . . Protection . | . . . Artifact . | . . . Weapon 6 | 2 3 1 Energy Gun 2 | 2 . . Energy Cannon 2 | . 2 . Ballistic Gun . | . . . Ballistic Cannon . | . . . Launcher 2 | . 1 1 Special Weapon . | . . . Impact Weapon . | . . . Slashing Weapon . | . . . Piercing Weapon . | . . . Special Melee Weapon . | . . . Unidentified Prototypes . | . . . Parts Lost 4 | . . 4 Power 1 | . . 1 Propulsion 2 | . . 2 Utility . | . . . Weapon 1 | . . 1 Highest Loss Streak 4 | . . 4 To Critical Strikes . | . . . Average Backups 2 | 1 2 3 Power . | . 1 1 Propulsion . | . . . Utility . | . . . Weapon 1 | . 1 2 Tool/Special . | . . . Unused Backups 2 | . 1 1 Power 1 | . . 1 Propulsion . | . . . Utility . | . . . Weapon 1 | . 1 . Tool/Special . | . . . Average Slot Usage (%) 74 | . 71 78 Engine 13 | . 14 12 Leg 27 | . 28 26 Storage 5 | . . 9 Energy Gun 3 | . 7 . Energy Cannon 24 | . 20 28 Peak Build Rating 8 | 5 7 8 Average Rating 6 | 3 6 7 On Entrance 4 | . 5 7 Avg Prop Armor Cover (%) . | . . . Naked Turns . | . . . Heaviest Build 31 | 6 11 31 Greatest Support 20 | 20 20 20 Greatest Overweight (x) 1 | . . 1 Average Overweight (x) . | . . . Largest Inventory Capacity 15 | 5 5 15 Average Capacity 8 | 5 5 12 Most Carried 3 | 2 3 3 Average Carried 2 | 1 2 2 Final Capacity 15 | 5 5 15 Final Carried 3 | 2 3 2 Class Distribution -------------------- 100% | Mutant Dominant Class ---------------- Mutant | -10/Materials Mutant | -10/Mines Resources | -11 -10 -10 ----------- Run | Yrd Mat Min Matter Collected 340 | 240 . 100 Remotely . | . . . Salvage Created 17 | . 17 . Parts 4 | . 4 . Haulers Intercepted . | . . . Recyclers Shooed . | . . . Parts Field Recycled . | . . . Retrieved Matter . | . . . Parts Self-Destructed . | . . . Prevented . | . . . Parts Restored . | . . . Kills | -11 -10 -10 ------- Run | Yrd Mat Min Combat Hostiles Destroyed 3 | . 3 . AOE 3 | . 3 . Classes Destroyed 2 | . 2 . Builder 2 | . 2 . Swarmer 3 | . 3 . Best Kill Streak 5 | . 5 . Combat Bots Only 3 | . 3 . Max Kills in Single Turn 3 | . 3 . Gunslinging . | . . . Exploded 2 | . 2 . Melee . | . . . Uniques/NPCs Destroyed . | . . . Combat | -11 -10 -10 -------- Run | Yrd Mat Min Hostile Shots Fired 40 | . 16 24 Missed 15 | . 8 7 Hits 25 | . 8 17 Projectile 25 | . 8 17 AOE 21 | . . 21 Damage Taken 730 | . 72 658 Core 261 | . 19 242 Absorbed by Shields . | . . . Core Remaining (%) 100 | 100 . . Volleys Fired 11 | . 6 5 Largest 2 | . 2 2 Hottest 136 | . 136 136 Shots Fired 17 | . 8 9 Gun . | . . . Cannon 13 | . 4 9 Launcher 4 | . 4 . Special . | . . . Kinetic . | . . . Thermal 13 | . 4 9 Explosive 4 | . 4 . Electromagnetic . | . . . Robot Hit Streak 4 | . 4 2 Robot Miss Streak 2 | . 2 2 Penetration Max . | . . . Secondary Targets . | . . . Shots Hit Robots 9 | . 4 5 Core Hits 6 | . 5 1 Critical Kills . | . . . Critical Parts Destroyed . | . . . Critical Strikes . | . . . Melee Attacks . | . . . Impact . | . . . Slashing . | . . . Piercing . | . . . Sneak Attacks . | . . . Combat Hostiles . | . . . Follow-up Attacks . | . . . Damage Inflicted 505 | . 402 103 Guns . | . . . Cannons 144 | . 41 103 Explosions 361 | . 361 . Melee . | . . . Ramming . | . . . Kinetic . | . . . Thermal 144 | . 41 103 Explosive 361 | . 361 . Electromagnetic . | . . . Impact . | . . . Slashing . | . . . Piercing . | . . . Highest Corruption . | . . . Average Corruption . | . . . Corruption Purged . | . . . Corruption Blocked . | . . . Overload Shots . | . . . Overflow Damage 12 | . 12 . Projectiles . | . . . Explosions 12 | . 12 . Melee . | . . . Knockbacks . | . . . Impact . | . . . Kinetic . | . . . Secondary . | . . . Self-Inflicted Damage . | . . . Shots . | . . . Rammed . | . . . Targets Rammed . | . . . Kicked . | . . . Crushed . | . . . Highest Temperature 150 | . 150 135 Average Temperature 66 | . 75 59 Received Heat Transfer 15 | . 15 . Siege Activations . | . . . Martial Activations . | . . . Shielding Activations . | . . . Robots Disrupted . | . . . Combat Hostiles . | . . . Robots Corrupted . | . . . Combat Hostiles . | . . . Parts Fried . | . . . Impact Corruptions . | . . . Robots Melted . | . . . Combat Hostiles . | . . . Parts Melted . | . . . Heat Transferred 259 | . 74 185 Parts Sabotaged . | . . . Parts Stolen . | . . . Parts Stripped . | . . . Power Chain Reactions . | . . . Alert | -11 -10 -10 ------- Run | Yrd Mat Min Maximum Alert Level . | . . . Low Security (%) 100 | 100 100 100 Level 1 . | . . . Level 2 . | . . . Level 3 . | . . . Level 4 . | . . . Level 5 . | . . . High Security . | . . . Max Security . | . . . Peak Influence 84 | . 84 16 Initial 16 | . . 16 Average 11 | . 27 1 Influence Increases 98 | . 98 . Destroy 0b10 Robot/C 60 | . 60 . Destroy 0b10 Robot/NC 10 | . 10 . Destroy Leader 10 | . 10 . Successful Hack 14 | . 14 . Destroy Structure 4 | . 4 . Influence Decreases 98 | . 54 44 Entered New Map 28 | . . 28 Time Decay 70 | . 54 16 Squads Dispatched 2 | . . 2 Investigation . | . . . Extermination . | . . . Reinforcement . | . . . Assault 2 | . . 2 Garrison . | . . . Intercept . | . . . Searches Triggered . | . . . Construction Impeded . | . . . Haulers Reinforced . | . . . Active Scanning Responses . | . . . Cargo Convoy Interrupts . | . . . Stealth | -11 -10 -10 --------- Run | Yrd Mat Min Distress Signals 1 | . 1 . Communications Jammed . | . . . Distress Signals . | . . . Times Spotted 10 | . 9 1 Peak Tracking Total 6 | . 6 1 Tactical Retreats . | . . . Traps | -11 -10 -10 ------- Run | Yrd Mat Min Traps Triggered . | . . . Indirectly . | . . . Trap Hack Attempts . | . . . Triggered . | . . . Disarmed . | . . . Reprogrammed . | . . . Reused . | . . . Traps Extracted . | . . . Installed . | . . . Triggered . | . . . Machines | -11 -10 -10 ---------- Run | Yrd Mat Min Machines Disabled . | . . . Max in Single Turn . | . . . Machines Repaired . | . . . Machines Dismantled . | . . . Machines Sabotaged . | . . . Overloaded Fab Kills . | . . . Hacking | -11 -10 -10 --------- Run | Yrd Mat Min Machines Accessed 2 | . 2 . Terminals 2 | . 2 . Fabricators . | . . . Repair Stations . | . . . Recycling Units . | . . . Scanalyzers . | . . . Garrison Access . | . . . Total Hacks 3 | . 3 . Successful 1 | . 1 . Failed 2 | . 2 . Catastrophic . | . . . Database Lockouts . | . . . Manual . | . . . Terminals 3 | . 3 . Fabricators . | . . . Repair Stations . | . . . Recycling Units . | . . . Scanalyzers . | . . . Garrison Access . | . . . Terminal Hacks 1 | . 1 . Prototype ID Bank 1 | . 1 . Fabricator Hacks . | . . . Repair Station Hacks . | . . . Recycling Unit Hacks . | . . . Scanalyzer . | . . . Garrison Access Hacks . | . . . Unauthorized Hacks . | . . . Terminals . | . . . Fabricators . | . . . Repair Stations . | . . . Recycling Units . | . . . Scanalyzers . | . . . Garrison Access . | . . . Data Cores Recovered . | . . . Used . | . . . Hacking Detections 1 | . 1 . Full Trace Events . | . . . Feedback Events . | . . . Feedback Blocked . | . . . Robot Schematics Acquired . | . . . Robots Built . | . . . Authchips . | . . . Time . | . . . Total Robot Build Rating . | . . . Part Schematics Acquired . | . . . Parts Built . | . . . Authchips . | . . . Time . | . . . Total Part Build Rating . | . . . Part Studies Acquired . | . . . Parts Repaired . | . . . Time . | . . . Parts Recycled . | . . . Recycled Matter . | . . . Retrieved Matter . | . . . Retrieved Components . | . . . Parts Scanalyzed . | . . . Part Schematics Acquired . | . . . Parts Damaged . | . . . Bothacking | -11 -10 -10 ------------ Run | Yrd Mat Min Used RIF Installer . | . . . Robots Hacked . | . . . Non-combat . | . . . Combat . | . . . Robot Hacks Applied . | . . . Relay Couplers Released . | . . . Fabnet Peak Effective % . | . . . Robots Rewired . | . . . Allies Hacked . | . . . Hacks Repelled . | . . . Allies | -11 -10 -10 -------- Run | Yrd Mat Min Total Allies 1 | . . 1 Largest Group 1 | . . 1 Highest-Rated Group 31 | . . 31 Highest-Rated Ally 31 | . . 31 Total Orders . | . . . Ally Attacks 13 | . . 13 Total Damage 194 | . . 194 Kills . | . . . Allies Corrupted . | . . . Allies Melted . | . . . Intel | -11 -10 -10 ------- Run | Yrd Mat Min Active Infowar (turns) . | . . . Robot Analysis Total . | . . . Derelict Logs Recovered 1 | . . 1 Drone Launches . | . . . Drone Recoveries . | . . . Exploration | -11 -10 -10 ------------- Run | Yrd Mat Min Turns Passed 542 | 70 219 253 Spaces Moved 364 | 53 163 148 Core 4 | 4 . . Treads . | . . . Legs 360 | 49 163 148 Wheels . | . . . Hover . | . . . Flight . | . . . Fastest Speed 50 | 50 120 120 Average Speed 135 | 114 120 160 Slowest Speed 190 | 120 120 190 Overloaded Moves . | . . . Propulsion Burnouts . | . . . Robots Hopped . | . . . Potential Cave-ins . | . . . Cave-ins Triggered . | . . . Exploration Rate (%) 28 | 4 40 40 Regions Visited 2 Branch Regions 1 Pre-discovered Areas . | . . . Known Exits Taken . | . . . Unknown Exits Taken 2 | 1 1 . Scrap Searched 2 | . . 2 Spaces Dug . | . . . Terrain Destroyed 3 | . 3 . Melee . | . . . Projectile . | . . . AOE 3 | . 3 . Terrain Rammed . | . . . Walls Destroyed . | . . . Machines Disabled . | . . . Actions | -11 -10 -10 --------- Run | Yrd Mat Min Total 393 | 59 179 155 Wait . | . . . Move 362 | 52 162 148 Hop . | . . . Pick Up 4 | 2 2 . Fast Attach 8 | 5 2 1 Attach 1 | . . 1 Detach 2 | . 2 . Swap 2 | . 2 . Drop 3 | . 3 . Fire 11 | . 6 5 Melee . | . . . Ram . | . . . Kick . | . . . Crush . | . . . Escape Stasis . | . . . Rewire . | . . . Trap . | . . . Miscellaneous . | . . . Route ------- -11/Scrapyard -10/Materials -10/Mines (discovered 1 exit: [*Mat]) History --------- Turn | Location | Event 6 | -11/Scrapyard | Discovered new exit (range 15) 71 | -11/Scrapyard | Entered Materials 168 | -10/Materials | Discovered new exit (range 8) 290 | -10/Materials | Entered Mines 302 | -10/Mines | Build established: Mutant 421 | -10/Mines | Discovered new exit (range 16) 468 | -10/Mines | Met a Derelict testing a Signal Generator 534 | -10/Mines | Core integrity fell below 50% 540 | -10/Mines | Core integrity fell below 20% 543 | -10/Mines | Destroyed by YI-UF0 with YI-UF0's Doublenader Last Messages --------------- 00477_ AY-6HB(g): "Okay, I guess that means it works. Now let's get out of here!" 00514_ YI-UF0: "WHAAM!" 00518_ The unstable cave ceiling collapses. 00518_ K-01 Serf destroyed. 00520_ YI-UF0: "WHOMP!" 00520_ R-06 Scavenger destroyed. 00525_ YI-UF0 mumbles something. 00525_ Lgt. Ion Engine destroyed. 00528_ YI-UF0 mumbles something. 00528_ ALERT: Intercepting significant anomalous signal. Dispatching assault force. 00530_ The unstable cave ceiling collapses. 00533_ YI-UF0: "KABOOM!" 00533_ K-01 Serf destroyed. 00534_ ALERT: Intercepting significant anomalous signal. Redirecting assault force. 00534_ The unstable cave ceiling collapses. 00537_ Aluminum Leg destroyed. 00539_ The unstable cave ceiling collapses. 00539_ Aluminum Leg destroyed. 00541_ The unstable cave ceiling collapses. 00541_ Particle Cannon destroyed. Map ----- +----------------------------------------------------+ | ????????????????????????????????????????????????? | | ????????????????????????????????????????????????? | | ????????????????????????????????????????????????? | | ????????????????????????????????????????????????? | | ????????????????????????????????????????????????? | | ????????????????????????????????????####????????? | | ?????????######????????????????????## ##???####? | | ????????## ##???????????????????# ##### ## | | ????????# & ##??????????????????# ## # | | ????????# < ##?????????????????## | | ????????## #??????????????????## | | ?????????## #?????####??????????#### | | ??????????## ##??### ?????????????######## | | ???????????# ###??## ???????????????????# | | ???????????# #????# ???????????????????# | | ???????????# #????# ????????????????????# | | ???????????# #????# ????????????????###### | | ???????????# #????# ???????????####### [ | | ???????????# #????# #?????????#### |##### | | ???????????#![#????# #?###??##### #???? | | ???????????#%!#???## ### #### ######???? | | ???????????# !#??## # ## ######???? | | ???????????# #?## #???? | | ???????????# ### #???? | | ???????????# r #### #???? | | ???????????# @ #???????? | | ???????????#### #???????? | | ?????????????## ## #???????? | | ????????????## g #### ##???????? | | ????????????## ! #??# ###????????? | | ????????????# #??# ##??????????? | | ??????? ##??## ##???????????? | | ?????? """ ####????####????????????? | | ?????? """ #???????????????????????? | | ???????? """ ## ????????????????????????? | | ?????????? #?# ????????????????????????? | | ?????????? #??# ????????????????????????? | | ???????? ###???## g ????????????????????????? | | ???????? ## ?????? ????????????????????????? | | ??????????#??????? ????????????????????????? | | ?????????????????? ???????????????????????? | | ?????????????????? ???????????????????????? | | ?????????????????# #% ???????????????????????? | | ?????????????????? % ???????????????????????? | | ?????????????????? %=?????????????????????????? | | ????????????????????????????????????????????????? | | ????????????????????????????????????????????????? | | ????????????????????????????????????????????????? | | ????????????????????????????????????????????????? | | ????????????????????????????????????????????????? | +----------------------------------------------------+ Best States ------------- Heat Dissipation 25 Energy Generation 10 Energy Capacity 125 Matter Stores 300 Matter Capacity 300 Sight Range 16 Terrain Scan Density 10 Evasion (%) 55 Item Schematics ----------------- None Robot Schematics ------------------ None Fabricated ------------ Nothing Repaired ---------- Nothing Studied --------- None Alien Tech Used ----------------- None Achievements -------------- None Challenges ------------ None Game ------ Seed DecoderClaymoresPenetrator Manual? 0 Play Time 00:04:39 Cumulative 668.9 hours Start 2026.07.12 @ 12:20:56 End 2026.07.12 @ 12:26:00 Sessions 1 Manual Loads 0 Difficulty Rogue Special Mode None Game No. 448 Rogue 448 Adventurer 0 Explorer 0 Win Type - Total 38 Types 25/1/6/6/0/0/0/0/0/0 Lore% 74 Gallery% 70 Achievement% 53 Wizard Run 0 Options --------- Layout 0 ASCII 1 Keyboard 0 Movement Numpad Keybinds 0 Fullscreen 2 Font 18/Smallcaps Map View 112x70 Zoom Use 0% Tactical HUD 1 Map Filters NONE Filters NONE Steam 1 RUN: e2e0ceb0-8ea7-4f21-94b2-87fd3d6b89ff